fUSD/lending_fUSD_20240420
["ID","MTS","AMOUNT","RATE_DAILY","PERIOD"]
[323041723,1713612645299,-500.0,0.00015068,2]
[323041724,1713612645308,-500.0,0.00015068,2]
[323041725,1713612645317,-500.0,0.00015068,2]
[323041726,1713612645326,-500.0,0.00015068,2]
[323041727,1713612645334,-745.27,0.00015068,2]
[323041728,1713612645343,-500.0,0.00015068,2]
[323041729,1713612645353,-505.52,0.00015068,2]
[323041730,1713612645362,-569.7,0.00015068,2]
[323041731,1713612645371,-500.0,0.00015068,2]
[323041732,1713612645385,-626.99,0.00015068,2]
[323041733,1713612645394,-500.0,0.00015068,2]
[323041734,1713612645403,-500.0,0.00015068,2]
[323041735,1713612645413,-500.0,0.00015068,2]
[323041736,1713612645424,-500.0,0.00015068,2]
[323041737,1713612645433,-609.53,0.00015068,2]
[323041738,1713612645442,-500.0,0.00015068,2]
[323041739,1713612645451,-500.0,0.00015068,2]
[323041740,1713612645460,-500.0,0.00015068,2]
[323041741,1713612645469,-500.0,0.00015068,2]
[323041742,1713612645478,-500.0,0.00015068,2]
[323041743,1713612645487,-500.0,0.00015068,2]
[323041744,1713612645496,-500.0,0.00015068,2]
[323041745,1713612645505,-500.0,0.00015068,2]
[323041746,1713612645514,-500.0,0.00015068,2]
[323041747,1713612645523,-621.21,0.00015068,2]
[323041748,1713612645532,-500.0,0.00015068,2]
[323041749,1713612645541,-500.0,0.00015068,2]
[323041750,1713612645551,-601.76,0.00015068,2]
[323041751,1713612645560,-536.16,0.00015068,2]
[323041752,1713612645570,-500.0,0.00015068,2]
[323041753,1713612645579,-500.0,0.00015068,2]
[323041754,1713612645588,-643.97,0.00015068,2]
[323041755,1713612645597,-572.41,0.00015068,2]
[323041756,1713612645606,-500.0,0.00015068,2]
[323041757,1713612645616,-1151.82,0.00015068,2]
[323041758,1713612645627,-500.0,0.00015068,2]
[323041760,1713612645637,-500.0,0.00015068,2]
[323041761,1713612645646,-709.33,0.00015068,2]
[323041762,1713612645654,-628.78,0.00015068,2]
[323041763,1713612645664,-683.68,0.00015068,2]
[323041764,1713612645673,-680.79,0.00015068,2]
[323041765,1713612645683,-516.80094974,0.00015068,2]
[323041767,1713612645693,-300.53016207,0.00015068,2]
[323041769,1713612645703,-535.75,0.00015068,2]
[323041771,1713612645712,-500.0,0.00015068,2]
[323041772,1713612645721,-500.0,0.00015068,2]
[323041774,1713612645730,-608.59,0.00015068,2]
[323041776,1713612645739,-692.26,0.00015068,2]
[323041778,1713612645749,-738.49,0.00015068,2]
[323041780,1713612645758,-500.0,0.00015068,2]
[323041782,1713612645767,-1323.17,0.00015068,2]
[323041784,1713612645776,-875.5,0.00015068,2]
[323041786,1713612645786,-500.0,0.00015068,2]
[323041788,1713612645795,-163.33353209,0.00015068,2]
[323041790,1713612645805,-812.8,0.00015068,2]
[323041792,1713612645814,-500.0,0.00015068,2]
[323041793,1713612645823,-500.0,0.00015068,2]
[323041795,1713612645834,-500.0,0.00015068,2]
[323041796,1713612645843,-827.02,0.00015068,2]
[323041798,1713612645854,-500.0,0.00015068,2]
[323041799,1713612645863,-625.43948035,0.00015068,2]
[323041800,1713612645873,-500.0,0.00015068,2]
[323041801,1713612645883,-542.99,0.00015068,2]
[323041802,1713612645893,-734.55,0.00015068,2]
[323041803,1713612645902,-500.0,0.00015068,2]
[323041804,1713612645912,-576.12602717,0.00015068,2]
[323041805,1713612645921,-960.45,0.00015068,2]
[323041806,1713612645929,-500.0,0.00015068,2]
[323041807,1713612645939,-587.21,0.00015068,2]
[323041808,1713612645948,-20000.0,0.00015068,5]
[323041809,1713612645958,-500.0,0.00015068,2]
[323041810,1713612645967,-1244.87,0.00015068,2]
[323041811,1713612645976,-500.0,0.00015068,2]
[323041812,1713612645985,-635.8,0.00015068,2]
[323041813,1713612645994,-746.13,0.00015068,2]
[323041814,1713612646004,-428.79476067,0.00015068,2]
[323041815,1713612646013,-500.0,0.00015068,2]
[323041816,1713612646022,-500.0,0.00015068,2]
[323041817,1713612646031,-500.0,0.00015068,2]
[323041818,1713612646040,-500.0,0.00015068,2]
[323041819,1713612646049,-500.0,0.00015068,2]
[323041820,1713612646059,-500.0,0.00015068,2]
[323041821,1713612646068,-825.53,0.00015068,2]
[323041822,1713612646077,-500.0,0.00015068,2]
[323041823,1713612646086,-500.0,0.00015068,2]
[323041824,1713612646095,-558.24,0.00015068,2]
[323041825,1713612646104,-500.0,0.00015068,2]
[323041826,1713612646113,-948.69,0.00015068,2]
[323041827,1713612646123,-500.0,0.00015068,2]
[323041828,1713612646134,-500.0,0.00015068,2]
[323041829,1713612646143,-500.0,0.00015068,2]
[323041830,1713612646151,-500.0,0.00015068,2]
[323041831,1713612646160,-500.0,0.00015068,2]
[323041832,1713612646169,-500.0,0.00015068,2]
[323041833,1713612646178,-500.0,0.00015068,2]
[323041834,1713612646188,-500.0,0.00015068,2]
[323041835,1713612646197,-500.0,0.00015068,2]
[323041836,1713612646206,-500.0,0.00015068,2]
[323041837,1713612646215,-500.0,0.00015068,2]
[323041838,1713612646225,-500.0,0.00015068,2]
[323041839,1713612646234,-563.88,0.00015068,2]
[323041840,1713612646243,-500.0,0.00015068,2]
[323041841,1713612646252,-531.65,0.00015068,2]
[323041842,1713612646262,-500.0,0.00015068,2]
[323041843,1713612646272,-500.0,0.00015068,2]
[323041844,1713612646281,-912.53,0.00015068,2]
[323041845,1713612646290,-500.0,0.00015068,2]
[323041846,1713612646299,-500.0,0.00015068,2]
[323041847,1713612646308,-500.0,0.00015068,2]
[323041848,1713612646317,-973.17,0.00015068,2]
[323041849,1713612646326,-500.0,0.00015068,2]
[323041850,1713612646335,-686.71,0.00015068,2]
[323041851,1713612646346,-500.0,0.00015068,2]
[323041852,1713612646355,-500.0,0.00015068,2]
[323041853,1713612646364,-787.52,0.00015068,2]
[323041854,1713612646373,-500.0,0.00015068,2]
[323041855,1713612646384,-500.0,0.00015068,2]
[323041856,1713612646393,-500.0,0.00015068,2]
[323041857,1713612646402,-500.0,0.00015068,2]
[323041858,1713612646412,-500.0,0.00015068,2]
[323041859,1713612646421,-500.0,0.00015068,2]
[323041860,1713612646430,-895.87,0.00015068,2]
[323041861,1713612646439,-913.88,0.00015068,2]
[323041862,1713612646448,-1191.11,0.00015068,2]
[323041863,1713612646457,-1411.09,0.00015068,2]
[323041864,1713612646467,-500.0,0.00015068,2]
[323041865,1713612646476,-500.0,0.00015068,2]
[323041866,1713612646485,-500.0,0.00015068,2]
[323041867,1713612646495,-584.85512914,0.00015068,2]
[323041868,1713612646504,-663.71,0.00015068,2]
[323041869,1713612646513,-557.18,0.00015068,2]
[323041870,1713612646522,-500.0,0.00015068,2]
[323041871,1713612646531,-500.0,0.00015068,2]
[323041872,1713612646540,-500.0,0.00015068,2]
[323041873,1713612646550,-603.81,0.00015068,2]
[323041874,1713612646559,-500.0,0.00015068,2]
[323041875,1713612646568,-500.0,0.00015068,2]
[323041876,1713612646577,-500.0,0.00015068,2]
[323041877,1713612646586,-1135.11,0.00015068,2]
[323041878,1713612646595,-500.0,0.00015068,2]
[323041879,1713612646605,-500.0,0.00015068,2]
[323041880,1713612646614,-500.0,0.00015068,2]
[323041881,1713612646627,-500.0,0.00015068,2]
[323041882,1713612646637,-500.0,0.00015068,2]
[323041883,1713612646646,-675.49,0.00015068,2]
[323041884,1713612646655,-500.0,0.00015068,2]
[323041885,1713612646665,-501.58,0.00015068,2]
[323041886,1713612646674,-500.0,0.00015068,2]
[323041887,1713612646683,-500.0,0.00015068,2]
[323041888,1713612646693,-694.88,0.00015068,2]
[323041889,1713612646702,-500.0,0.00015068,2]
[323041890,1713612646711,-500.0,0.00015068,2]
[323041891,1713612646720,-500.0,0.00015068,2]
[323041892,1713612646729,-570.22,0.00015068,2]
[323041893,1713612646738,-565.09,0.00015068,2]
[323041894,1713612646747,-500.0,0.00015068,2]
[323041895,1713612646757,-500.0,0.00015068,2]
[323041896,1713612646766,-1632.11,0.00015068,2]
[323041897,1713612646775,-500.0,0.00015068,2]
[323041898,1713612646785,-500.0,0.00015068,2]
[323041899,1713612646794,-824.7,0.00015068,2]
[323041900,1713612646803,-500.0,0.00015068,2]
[323041901,1713612646812,-500.0,0.00015068,2]
[323041902,1713612646821,-500.0,0.00015068,2]
[323041903,1713612646831,-921.74,0.00015068,2]
[323041904,1713612646840,-500.0,0.00015068,2]
[323041905,1713612646851,-500.0,0.00015068,2]
[323041906,1713612646861,-1065.98,0.00015068,2]
[323041907,1713612646870,-500.0,0.00015068,2]
[323041908,1713612646881,-500.0,0.00015068,2]
[323041909,1713612646890,-500.0,0.00015068,2]
[323041910,1713612646899,-500.0,0.00015068,2]
[323041911,1713612646908,-500.0,0.00015068,2]
[323041912,1713612646917,-500.0,0.00015068,2]
[323041913,1713612646927,-894.82,0.00015068,2]
[323041914,1713612646936,-500.0,0.00015068,2]
[323041915,1713612646946,-1544.93,0.00015068,2]
[323041916,1713612646956,-500.0,0.00015068,2]
[323041917,1713612646965,-500.0,0.00015068,2]
[323041918,1713612646974,-500.0,0.00015068,2]
[323041919,1713612646984,-500.0,0.00015068,2]
[323041920,1713612646993,-500.0,0.00015068,2]
[323041921,1713612647002,-500.0,0.00015068,2]
[323041922,1713612647012,-1548.55,0.00015068,2]
[323041923,1713612647021,-776.06,0.00015068,2]
[323041924,1713612647030,-500.0,0.00015068,2]
[323041925,1713612647039,-781.48,0.00015068,2]
[323041926,1713612647048,-500.0,0.00015068,2]
[323041927,1713612647058,-1092.57,0.00015068,2]
[323041928,1713612647067,-530.55,0.00015068,2]
[323041929,1713612647076,-500.0,0.00015068,2]
[323041930,1713612647086,-500.0,0.00015068,2]
[323041931,1713612647095,-500.0,0.00015068,2]
[323041932,1713612647104,-1073.34,0.00015068,2]
[323041933,1713612647114,-500.0,0.00015068,2]
[323041934,1713612647123,-1608.36,0.00015068,2]
[323041935,1713612647134,-559.95,0.00015068,2]
[323041936,1713612647143,-500.0,0.00015068,2]
[323041937,1713612647153,-500.0,0.00015068,2]
[323041938,1713612647165,-544.28,0.00015068,2]
[323041939,1713612647174,-500.0,0.00015068,2]
[323041940,1713612647183,-500.0,0.00015068,2]
[323041941,1713612647192,-616.77,0.00015068,2]
[323041942,1713612647201,-500.0,0.00015068,2]
[323041943,1713612647210,-500.0,0.00015068,2]
[323041944,1713612647219,-570.2,0.00015068,2]
[323041945,1713612647228,-500.0,0.00015068,2]
[323041946,1713612647237,-500.0,0.00015068,2]
[323041947,1713612647246,-733.88,0.00015068,2]
[323041948,1713612647254,-859.51,0.00015068,2]
[323041949,1713612647263,-500.0,0.00015068,2]
[323041950,1713612647274,-500.0,0.00015068,2]
[323041951,1713612647284,-500.0,0.00015068,2]
[323041952,1713612647293,-1804.79,0.00015068,2]
[323041953,1713612647303,-500.0,0.00015068,2]
[323041954,1713612647312,-1434.82,0.00015068,2]
[323041955,1713612647321,-500.0,0.00015068,2]
[323041956,1713612647330,-500.0,0.00015068,2]
[323041957,1713612647339,-500.0,0.00015068,2]
[323041958,1713612647348,-500.0,0.00015068,2]
[323041959,1713612647357,-500.0,0.00015068,2]
[323041960,1713612647367,-1340.17,0.00015068,2]
[323041961,1713612647376,-500.0,0.00015068,2]
[323041962,1713612647388,-500.0,0.00015068,2]
[323041963,1713612647397,-554.7,0.00015068,2]
[323041964,1713612647406,-500.0,0.00015068,2]
[323041965,1713612647415,-500.0,0.00015068,2]
[323041966,1713612647424,-500.0,0.00015068,2]
[323041967,1713612647434,-916.99,0.00015068,2]
[323041968,1713612647443,-500.0,0.00015068,2]
[323041969,1713612647453,-906.66,0.00015068,2]
[323041970,1713612647463,-500.0,0.00015068,2]
[323041971,1713612647472,-566.55,0.00015068,2]
[323041972,1713612647482,-2420.85,0.00015068,2]
[323041973,1713612647490,-1995.98,0.00015068,2]
[323041974,1713612647500,-500.0,0.00015068,2]
[323041975,1713612647509,-500.0,0.00015068,2]
[323041976,1713612647519,-500.0,0.00015068,2]
[323041977,1713612647528,-500.0,0.00015068,2]
[323041978,1713612647537,-1587.74,0.00015068,2]
[323041979,1713612647546,-500.0,0.00015068,2]
[323041980,1713612647556,-500.0,0.00015068,2]
[323041981,1713612647565,-601.19,0.00015068,2]
[323041982,1713612647574,-694.91,0.00015068,2]
[323041983,1713612647582,-1074.58,0.00015068,2]
[323041984,1713612647591,-500.0,0.00015068,2]
[323041985,1713612647600,-500.0,0.00015068,2]
[323041986,1713612647609,-719.22,0.00015068,2]
[323041987,1713612647620,-1207.19,0.00015068,2]
[323041988,1713612647629,-500.0,0.00015068,2]
[323041989,1713612647638,-500.0,0.00015068,2]
[323041990,1713612647647,-969.64,0.00015068,2]
[323041991,1713612647657,-511.67,0.00015068,2]
[323041992,1713612647666,-500.0,0.00015068,2]
[323041993,1713612647676,-1606.13,0.00015068,2]
[323041994,1713612647685,-500.0,0.00015068,2]
[323041995,1713612647694,-931.98,0.00015068,2]
[323041996,1713612647703,-500.0,0.00015068,2]
[323041997,1713612647713,-849.93,0.00015068,2]
[323041998,1713612647722,-500.0,0.00015068,2]
[323041999,1713612647731,-642.16,0.00015068,2]
[323042000,1713612647740,-500.0,0.00015068,2]
[323042001,1713612647749,-560.72,0.00015068,2]
[323042002,1713612647760,-500.0,0.00015068,2]
[323042003,1713612647769,-500.0,0.00015068,2]
[323042004,1713612647779,-549.72,0.00015068,2]
[323042005,1713612647789,-1509.5,0.00015068,2]
[323042006,1713612647798,-1817.05,0.00015068,2]
[323042007,1713612647807,-500.0,0.00015068,2]
[323042008,1713612647816,-500.0,0.00015068,2]
[323042009,1713612647826,-695.48,0.00015068,2]
[323042010,1713612647835,-1565.24,0.00015068,2]
[323042011,1713612647844,-500.0,0.00015068,2]
[323042012,1713612647853,-500.0,0.00015068,2]
[323042013,1713612647862,-500.0,0.00015068,2]
[323042014,1713612647871,-500.0,0.00015068,2]
[323042015,1713612647881,-1256.11,0.00015068,2]
[323042016,1713612647890,-1332.53,0.00015068,2]
[323042017,1713612647899,-500.0,0.00015068,2]
[323042018,1713612647909,-470.07,0.00015068,2]
[323042019,1713612647919,-500.0,0.00015068,2]
[323042020,1713612647928,-500.0,0.00015068,2]
[323042021,1713612647938,-719.02,0.00015068,2]
[323042022,1713612647948,-1251.09,0.00015068,2]
[323042023,1713612647958,-500.0,0.00015068,2]
[323042024,1713612647967,-500.0,0.00015068,2]
[323042025,1713612647976,-485.07984268,0.00015068,2]
[323042026,1713612647986,-1196.23,0.00015068,2]
[323042027,1713612647995,-500.0,0.00015068,2]
[323042028,1713612648004,-500.0,0.00015068,2]
[323042029,1713612648013,-500.0,0.00015068,2]
[323042030,1713612648023,-1236.9,0.00015068,2]
[323042031,1713612648032,-1457.04,0.00015068,2]
[323042032,1713612648042,-500.0,0.00015068,2]
[323042033,1713612648051,-500.0,0.00015068,2]
[323042034,1713612648061,-751.09,0.00015068,2]
[323042035,1713612648070,-500.0,0.00015068,2]
[323042036,1713612648079,-500.0,0.00015068,2]
[323042037,1713612648089,-500.0,0.00015068,2]
[323042038,1713612648098,-500.0,0.00015068,2]
[323042039,1713612648107,-500.0,0.00015068,2]
[323042040,1713612648117,-500.0,0.00015068,2]
[323042041,1713612648126,-500.0,0.00015068,2]
[323042042,1713612648136,-590.37,0.00015068,2]
[323042043,1713612648145,-1414.6,0.00015068,2]
[323042044,1713612648155,-500.0,0.00015068,2]
[323042045,1713612648165,-799.75,0.00015068,2]
[323042046,1713612648174,-939.31,0.00015068,2]
[323042047,1713612648184,-500.0,0.00015068,2]
[323042048,1713612648193,-1192.78,0.00015068,2]
[323042049,1713612648203,-1030.18,0.00015068,2]
[323042050,1713612648212,-900.44,0.00015068,2]
[323042051,1713612648221,-207.94502173,0.00015068,2]
[323042052,1713612648231,-500.0,0.00015068,2]
[323042053,1713612648240,-500.0,0.00015068,2]
[323042054,1713612648249,-500.0,0.00015068,2]
[323042055,1713612648259,-719.62,0.00015068,2]
[323042056,1713612648268,-500.0,0.00015068,2]
[323042057,1713612648277,-500.0,0.00015068,2]
[323042058,1713612648286,-1446.92,0.00015068,2]
[323042059,1713612648295,-500.0,0.00015068,2]
[323042060,1713612648304,-500.0,0.00015068,2]
[323042061,1713612648313,-500.0,0.00015068,2]
[323042062,1713612648322,-500.0,0.00015068,2]
[323042063,1713612648331,-500.0,0.00015068,2]
[323042064,1713612648340,-500.0,0.00015068,2]
[323042065,1713612648349,-500.0,0.00015068,2]
[323042066,1713612648358,-500.0,0.00015068,2]
[323042067,1713612648367,-753.84,0.00015068,2]
[323042068,1713612648376,-500.0,0.00015068,2]
[323042069,1713612648387,-500.0,0.00015068,2]
[323042070,1713612648395,-1632.01,0.00015068,2]
[323042071,1713612648404,-593.95,0.00015068,2]
[323042072,1713612648413,-500.0,0.00015068,2]
[323042073,1713612648422,-500.0,0.00015068,2]
[323042074,1713612648431,-522.88,0.00015068,2]
[323042075,1713612648440,-500.0,0.00015068,2]
[323042076,1713612648449,-500.0,0.00015068,2]
[323042077,1713612648458,-500.0,0.00015068,2]
[323042078,1713612648467,-1173.34,0.00015068,2]
[323042079,1713612648476,-711.55,0.00015068,2]
[323042080,1713612648486,-1784.36,0.00015068,2]
[323042081,1713612648494,-500.0,0.00015068,2]
[323042082,1713612648503,-507.93,0.00015068,2]
[323042083,1713612648513,-500.0,0.00015068,2]
[323042084,1713612648522,-635.07,0.00015068,2]
[323042085,1713612648532,-937.66,0.00015068,2]
[323042086,1713612648541,-540.45,0.00015068,2]
[323042087,1713612648551,-500.0,0.00015068,2]
[323042088,1713612648561,-500.0,0.00015068,2]
[323042089,1713612648570,-1351.93,0.00015068,2]
[323042090,1713612648579,-850.17,0.00015068,2]
[323042091,1713612648588,-608.42561365,0.00015068,2]
[323042092,1713612648598,-1039.82,0.00015068,2]
[323042093,1713612648607,-616.51,0.00015068,2]
[323042094,1713612648618,-500.0,0.00015068,2]
[323042095,1713612648628,-815.32,0.00015068,2]
[323042096,1713612648641,-500.0,0.00015068,2]
[323042097,1713612648649,-500.0,0.00015068,2]
[323042098,1713612648658,-846.0,0.00015068,2]
[323042099,1713612648667,-1270.86,0.00015068,2]
[323042100,1713612648676,-500.0,0.00015068,2]
[323042101,1713612648685,-500.0,0.00015068,2]
[323042102,1713612648695,-601.36,0.00015068,2]
[323042103,1713612648705,-500.0,0.00015068,2]
[323042104,1713612648714,-500.0,0.00015068,2]
[323042105,1713612648724,-3435.71,0.00015068,2]
[323042106,1713612648733,-1438.29,0.00015068,2]
[323042107,1713612648743,-500.0,0.00015068,2]
[323042108,1713612648752,-1090.25,0.00015068,2]
[323042109,1713612648762,-597.91,0.00015068,2]
[323042110,1713612648771,-500.0,0.00015068,2]
[323042111,1713612648780,-706.25,0.00015068,2]
[323042112,1713612648790,-500.0,0.00015068,2]
[323042113,1713612648800,-1246.1,0.00015068,2]
[323042114,1713612648809,-638.59,0.00015068,2]
[323042115,1713612648818,-1544.94,0.00015068,2]
[323042116,1713612648829,-2821.1,0.00015068,2]
[323042117,1713612648839,-500.0,0.00015068,2]
[323042118,1713612648848,-500.0,0.00015068,2]
[323042119,1713612648858,-2867.74,0.00015068,2]
[323042120,1713612648867,-500.0,0.00015068,2]
[323042121,1713612649096,-500.0,0.00015068,2]
[323042122,1713612649106,-1025.66,0.00015068,2]
[323042123,1713612649115,-500.0,0.00015068,2]
[323042124,1713612649124,-500.0,0.00015068,2]
[323042125,1713612649135,-1518.23,0.00015068,2]
[323042126,1713612649144,-500.0,0.00015068,2]
[323042127,1713612649153,-24824.3,0.00015068,2]
[323042128,1713612649162,-500.0,0.00015068,2]
[323042129,1713612649171,-1598.21,0.00015068,2]
[323042130,1713612649180,-500.0,0.00015068,2]
[323042131,1713612649190,-11627.04,0.00015068,2]
[323042132,1713612649199,-593.34990889,0.00015068,2]
[323042133,1713612649209,-500.0,0.00015068,2]
[323042134,1713612649218,-2704.05,0.00015068,2]
[323042135,1713612649227,-533.53,0.00015068,2]
[323042136,1713612649237,-500.0,0.00015068,2]
[323042137,1713612649246,-500.0,0.00015068,2]
[323042138,1713612649256,-2093.17,0.00015068,2]
[323042139,1713612649265,-500.0,0.00015068,2]
[323042140,1713612649275,-500.0,0.00015068,2]
[323042141,1713612649284,-500.0,0.00015068,2]
[323042142,1713612649294,-500.0,0.00015068,2]
[323042143,1713612649303,-579.94,0.00015068,2]
[323042144,1713612649312,-500.0,0.00015068,2]
[323042145,1713612649321,-500.0,0.00015068,2]
[323042146,1713612649330,-5262.77,0.00015068,2]
[323042147,1713612649340,-927.29,0.00015068,2]
[323042148,1713612649349,-510.43,0.00015068,2]
[323042149,1713612649358,-500.0,0.00015068,2]
[323042150,1713612649367,-500.0,0.00015068,2]
[323042151,1713612649377,-500.0,0.00015068,2]
[323042152,1713612649388,-1444.46,0.00015068,2]
[323042153,1713612649397,-790.59,0.00015068,2]
[323042154,1713612649407,-565.27,0.00015068,2]
[323042155,1713612649417,-500.0,0.00015068,2]
[323042156,1713612649426,-500.0,0.00015068,2]
[323042157,1713612649435,-500.0,0.00015068,2]
[323042158,1713612649445,-1372.02,0.00015068,2]
[323042159,1713612649454,-500.0,0.00015068,2]
[323042160,1713612649463,-708.29,0.00015068,2]
[323042161,1713612649473,-500.0,0.00015068,2]
[323042162,1713612649482,-500.0,0.00015068,2]
[323042163,1713612649492,-1080.34,0.00015068,2]
[323042164,1713612649501,-850.8,0.00015068,2]
[323042165,1713612649511,-7662.57,0.00015068,2]
[323042166,1713612649520,-2510.66,0.00015068,2]
[323042167,1713612649530,-500.0,0.00015068,2]
[323042168,1713612649539,-974.45,0.00015068,2]
[323042169,1713612649549,-895.41,0.00015068,2]
[323042170,1713612649558,-4939.71,0.00015068,2]
[323042171,1713612649567,-500.0,0.00015068,2]
[323042172,1713612649576,-618.87,0.00015068,2]
[323042173,1713612649585,-937.59,0.00015068,2]
[323042174,1713612649594,-500.0,0.00015068,2]
[323042175,1713612649604,-500.0,0.00015068,2]
[323042176,1713612649614,-1383.62,0.00015068,2]
[323042177,1713612649626,-579.7,0.00015068,2]
[323042178,1713612649637,-1332.87,0.00015068,2]
[323042179,1713612649646,-1184.5,0.00015068,2]
[323042180,1713612649655,-985.1,0.00015068,2]
[323042181,1713612649665,-2882.63,0.00015068,2]
[323042182,1713612649675,-1881.58,0.00015068,2]
[323042183,1713612649684,-155.25412637,0.00015068,2]
[323042184,1713612649694,-500.0,0.00015068,2]
[323042185,1713612649703,-500.0,0.00015068,2]
[323042186,1713612649713,-526.51,0.00015068,2]
[323042187,1713612649723,-2666.46,0.00015068,2]
[323042188,1713612649732,-500.0,0.00015068,2]
[323042189,1713612649741,-500.0,0.00015068,2]
[323042190,1713612649751,-617.97,0.00015068,2]
[323042191,1713612649761,-500.0,0.00015068,2]
[323042192,1713612649770,-500.0,0.00015068,2]
[323042193,1713612649779,-1051.44,0.00015068,2]
[323042194,1713612649789,-500.0,0.00015068,2]
[323042195,1713612649798,-3715.06,0.00015068,2]
[323042196,1713612649809,-500.0,0.00015068,2]
[323042197,1713612649818,-501.5541157,0.00015068,2]
[323042198,1713612649828,-500.0,0.00015068,2]
[323042199,1713612649838,-500.0,0.00015068,2]
[323042200,1713612649847,-500.0,0.00015068,2]
[323042201,1713612649856,-567.58,0.00015068,2]
[323042202,1713612649866,-500.0,0.00015068,2]
[323042203,1713612649876,-500.0,0.00015068,2]
[323042204,1713612649886,-1010.0,0.00015068,2]
[323042205,1713612649896,-2124.95,0.00015068,2]
[323042206,1713612649906,-500.0,0.00015068,2]
[323042207,1713612649916,-2067.43,0.00015068,2]
[323042208,1713612649926,-805.57,0.00015068,2]
[323042209,1713612649937,-500.0,0.00015068,2]
[323042210,1713612649947,-500.0,0.00015068,2]
[323042211,1713612649957,-2968.5,0.00015068,2]
[323042212,1713612649967,-1210.76,0.00015068,2]
[323042213,1713612649976,-500.0,0.00015068,2]
[323042214,1713612649986,-500.0,0.00015068,2]
[323042215,1713612649995,-500.0,0.00015068,2]
[323042216,1713612650005,-500.0,0.00015068,2]
[323042217,1713612650015,-922.66,0.00015068,2]
[323042218,1713612650024,-944.66,0.00015068,2]
[323042219,1713612650035,-500.0,0.00015068,2]
[323042220,1713612650044,-655.69,0.00015068,2]
[323042221,1713612650054,-2166.39,0.00015068,2]
[323042222,1713612650063,-500.0,0.00015068,2]
[323042223,1713612650073,-1165.39,0.00015068,2]
[323042224,1713612650083,-1196.26,0.00015068,2]
[323042225,1713612650092,-500.0,0.00015068,2]
[323042226,1713612650102,-500.0,0.00015068,2]
[323042227,1713612650112,-500.0,0.00015068,2]
[323042228,1713612650121,-500.0,0.00015068,2]
[323042229,1713612650130,-8130.26,0.00015068,2]
[323042230,1713612650140,-500.0,0.00015068,2]
[323042231,1713612650149,-2721.88,0.00015068,2]
[323042232,1713612650159,-504.27,0.00015068,2]
[323042233,1713612650169,-1629.91,0.00015068,2]
[323042234,1713612650179,-500.0,0.00015068,2]
[323042235,1713612650189,-500.0,0.00015068,2]
[323042236,1713612650198,-1178.61,0.00015068,2]
[323042237,1713612650208,-500.0,0.00015068,2]
[323042238,1713612650218,-744.87,0.00015068,2]